Workbook

Sheet ST3-Budget
B2: Table 1: Stocker Budget, 200 Head - 2018 | O2: EBB-ST3-18
B3: Bought in Spring & Sold in Fall | L3: No. of Head: | M3: 200
H5: Total Number
D6: Weight | H6: of Head | J6: Price or | L6: Total | M6: Value or
D7: Each | F7: Unit | H7: or Units | J7: Cost/Unit | L7: Value | M7: Cost/Head | O7: Your Value
C8: GROSS RETURNS
C9: Steers | D9: 875 | F9: lbs | H9: 198 | J9: 1.35 | L9: =D9*H9*J9 -> 233887.5 | M9: =L9/$M$3 -> 1169.4375
C11: TOTAL GROSS RETURNS | L11: =SUM(L9:L10) -> 233887.5 | M11: =SUM(M9:M10) -> 1169.4375
C13: OPERATING COSTS
C14: Purchased Steers | D14: 600 | F14: lbs | H14: 200 | J14: 1.65 | L14: =D14*H14*J14 -> 198000 | M14: =L14/$M$3 -> 990
C15: Alfalfa Hay | F15: ton | H15: 22 | J15: 150 | L15: =H15*J15 -> 3300 | M15: =L15/$M$3 -> 16.5
C16: Private Range | F16: head | H16: 300 | J16: 16 | L16: =H16*J16 -> 4800 | M16: =L16/$M$3 -> 24
C17: Pasture | F17: head | H17: 900 | J17: 18 | L17: 16200 | M17: 81
C18: Salt/Mineral | F18: cwt | H18: 12 | J18: 25 | L18: =H18*J18 -> 300 | M18: =L18/$M$3 -> 1.5
C19: Hauling | F19: head | H19: 200 | J19: 10 | L19: 2000 | M19: 10
C20: Veterinary | F20: head | H20: 200 | J20: =Vet!R12 -> 4.75 | L20: =H20*J20 -> 950 | M20: 4.75
C21: Hired Labor | F21: hour | H21: 20 | J21: 17.5 | L21: =H21*J21 -> 350 | M21: 1.75
C22: Marketing | F22: head | H22: 198 | J22: =M9*0.025 -> 29.2359375 | L22: 5788.715625 | M22: 28.94357813
C23: Miscellaneous | F23: head | H23: 200 | J23: 10 | L23: 2000 | M23: 10
C25: Interest on Operating Capital | F25: $ | H25: =SUM(L14:L24)*0.5 -> 116844.3578 | J25: 0.07 | L25: =H25*J25 -> 8179.105047 | M25: 40.89552523
C26: TOTAL OPERATING COSTS | L26: =SUM(L14:L25) -> 241867.8207 | M26: 1209.339103
C28: NET RETURNS ABOVE OPERATING COSTS | L28: =L11-L26 -> -7980.320672 | M28: =L28/$M$3 -> -39.90160336

Sheet Monthly Flows
B2: Table 2: Monthly Summary of Returns and Expenses. | P2: EBB-ST3-20
D3: Jan | E3: Feb | F3: Mar | G3: Apr | H3: May | I3: Jun | J3: Jul | K3: Aug | L3: Sep | M3: Oct | N3: Nov | O3: Dec | P3: Value
B5: Production:
C6: Steers | L6: =P6 -> 233887.5 | P6: ='ST3-Budget'!L9 -> 233887.5
B8: Total Receipts | D8: =SUM(D6:D7) -> 0 | E8: 0 | F8: 0 | G8: 0 | H8: 0 | I8: 0 | J8: 0 | K8: 0 | L8: 233887.5 | M8: 0 | N8: 0 | O8: 0 | P8: =P6 -> 233887.5
B11: Operating Inputs:
C12: ='ST3-Budget'!C14 -> Purchased Steers | F12: =P12 -> 198000 | P12: ='ST3-Budget'!L14 -> 198000
C13: ='ST3-Budget'!C15:D15 -> Alfalfa Hay | F13: =P13 -> 3300 | P13: ='ST3-Budget'!L15 -> 3300
C14: ='ST3-Budget'!C16:D16 -> Private Range | G14: =P14*0.6667 -> 3200.16 | H14: =P14*0.3333 -> 1599.84 | P14: ='ST3-Budget'!L16 -> 4800
C15: ='ST3-Budget'!C17:D17 -> Pasture | H15: =P15*0.11111 -> 1799.982 | I15: =$P$15*0.22222 -> 3599.964 | J15: =$P$15*0.22222 -> 3599.964 | K15: 3599.964 | L15: 3599.964 | P15: ='ST3-Budget'!L17 -> 16200
C16: ='ST3-Budget'!C18:D18 -> Salt/Mineral | G16: =$P$16*0.1666 -> 49.98 | H16: =$P$16*0.1666 -> 49.98 | I16: 49.98 | J16: 49.98 | K16: 49.98 | L16: 49.98 | P16: ='ST3-Budget'!L18 -> 300
C17: ='ST3-Budget'!C19:D19 -> Hauling | G17: =P17*0.5 -> 1000 | I17: =P17*0.5 -> 1000 | P17: ='ST3-Budget'!L19 -> 2000
C18: ='ST3-Budget'!C20:D20 -> Veterinary | F18: =P18 -> 950 | P18: ='ST3-Budget'!L20 -> 950
C19: ='ST3-Budget'!C21:D21 -> Hired Labor | F19: =P19 -> 350 | P19: ='ST3-Budget'!L21 -> 350
C20: ='ST3-Budget'!C22:D22 -> Marketing | L20: =P20 -> 5788.715625 | P20: ='ST3-Budget'!L22 -> 5788.715625
C21: ='ST3-Budget'!C23:D23 -> Miscellaneous | F21: =$P$21*0.25 -> 500 | G21: =$P$21*0.25 -> 500 | H21: 500 | I21: 500 | P21: ='ST3-Budget'!L23 -> 2000
C22: Interest on Operating Capital | L22: =P22 -> 8179.105047 | P22: ='ST3-Budget'!L25 -> 8179.105047
B24: Total Costs | D24: =SUM(D12:D21) -> 0 | E24: 0 | F24: 203100 | G24: 4750.14 | H24: 3949.802 | I24: 5149.944 | J24: 3649.944 | K24: 3649.944 | L24: 9438.659625 | M24: 0 | N24: 0 | O24: 0 | P24: =SUM(P12:P22) -> 241867.8207
B27: Net Returns | D27: =D8-D24 -> 0 | E27: 0 | F27: -203100 | G27: -4750.14 | H27: -3949.802 | I27: -5149.944 | J27: -3649.944 | K27: -3649.944 | L27: 224448.8404 | M27: 0 | N27: 0 | O27: 0 | P27: -7980.320672
B31: Table 3: Monthly Feed Requirements.
B32: Feed | D32: Units | E32: Jan | F32: Feb | G32: Mar | H32: Apr | I32: May | J32: Jun | K32: Jul | L32: Aug | M32: Sep | N32: Oct | O32: Nov | P32: Dec
B34: Alfalfa Hay | D34: ton | G34: 22
B35: Private Range | D35: head | H35: 200 | I35: 100
B36: Pasture | D36: head | I36: 100 | J36: 200 | K36: 200 | L36: 200 | M36: 200
B37: Salt/Mineral | D37: cwt | H37: 2 | I37: 2 | J37: 2 | K37: 2 | L37: 2 | M37: 2

Sheet Vet
A1: Veterinary Expenses
B4: Number of Head | D4: Units | E4: $/Unit | F4: Jan | G4: Feb | H4: Mar | I4: Apr | J4: May | K4: Jun | L4: Jul | M4: Aug | N4: Sep | O4: Oct | P4: Nov | Q4: Dec | R4: Total
A5: Steer Calves | B5: 200
A6: Respiratory Viral | D6: dose | E6: 1.8 | H6: 1 | R6: =SUM(F6:Q6)*$B$5*E6 -> 360
A7: 8 Way | D7: dose | E7: 0.9 | H7: 1 | R7: =SUM(F7:Q7)*$B$5*E7 -> 180
A8: Pour-On | D8: dose | E8: 0.5 | H8: 1 | R8: =SUM(F8:Q8)*$B$5*E8 -> 100
A9: Implant | D9: head | E9: 1.55 | H9: 1 | R9: =SUM(F9:Q9)*$B$5*E9 -> 310
Q10: Total | R10: =SUM(R6:R9) -> 950
Q12: $/Hd | R12: =R10/B5 -> 4.75
